bitfinex-derivatives/quotes_BTCF0:USTF0_20250212
["timestamp","ask_amount","ask_price","bid_price","bid_amount"]
[1739338117621,0.2790702,95980.0,95967.0,0.2084582]
[1739338118219,0.2790702,95980.0,95978.0,0.37694373]
[1739338119034,0.2790702,95980.0,95979.0,0.00956267]
[1739338119733,0.2790702,95980.0,95979.0,0.01256267]
[1739338126134,0.2790702,95980.0,95979.0,0.01156267]
[1739338126338,0.2790702,95980.0,95979.0,0.00756267]
[1739338126731,0.2790702,95980.0,95979.0,0.00656267]
[1739338127335,0.2800702,95980.0,95979.0,0.00556267]
[1739338127937,0.2800702,95980.0,95978.0,0.37694373]
[1739338128137,0.2800702,95980.0,95978.0,0.01614373]
[1739338128337,0.07164,95980.0,95970.0,0.00015633]
[1739338128537,0.2084437,95974.0,95970.0,0.00015633]
[1739338129540,0.2084437,95974.0,95970.0,0.00515633]
[1739338129839,0.2084437,95974.0,95970.0,0.02157532]
[1739338130041,0.2084437,95974.0,95970.0,0.00515633]
[1739338130245,0.2084437,95974.0,95970.0,0.00715633]
[1739338130838,0.15280126,95980.0,95970.0,0.00715633]
[1739338130839,0.2084458,95973.0,95970.0,0.00715633]
[1739338131737,0.2084458,95973.0,95970.0,0.02307516]
[1739338132939,0.2084458,95973.0,95970.0,0.02507516]
[1739338133141,0.2084458,95973.0,95970.0,0.23352596]
[1739338133534,0.2084458,95973.0,95970.0,0.02507516]
[1739338133740,0.2084458,95973.0,95971.0,0.2084481]
[1739338135034,0.2084458,95973.0,95971.0,0.2154481]
[1739338135641,0.2084458,95973.0,95971.0,0.2084481]
[1739338135849,0.2084458,95973.0,95971.0,0.2144481]
[1739338136051,0.2084458,95973.0,95971.0,0.2164481]
[1739338137052,0.2084458,95973.0,95971.0,0.2144481]
[1739338137352,0.2084458,95973.0,95971.0,0.2164481]
[1739338137745,0.2084458,95973.0,95971.0,0.2104481]
[1739338137951,0.2084458,95973.0,95971.0,0.2164481]
[1739338142260,0.2084458,95973.0,95971.0,0.2144481]
[1739338142450,0.2084458,95973.0,95971.0,0.2164481]
[1739338143746,0.2084458,95973.0,95971.0,0.008]
[1739338145252,0.2084458,95973.0,95971.0,0.007]
[1739338145449,0.2084458,95973.0,95971.0,0.005]
[1739338145654,0.2084458,95973.0,95971.0,0.007]
[1739338146049,0.2084458,95973.0,95971.0,0.005]
[1739338146259,0.2084458,95973.0,95971.0,0.006]
[1739338146659,0.2084252,95983.0,95971.0,0.006]
[1739338146963,0.0706,95987.0,95981.0,0.2084262]
[1739338147160,0.0706,95987.0,95982.0,0.101]
[1739338147754,0.5692072,95991.0,95982.0,0.101]
[1739338147955,0.0706,95990.0,95982.0,0.101]
[1739338148259,0.0706,95990.0,95986.0,0.2084148]
[1739338149756,0.00115633,95989.0,95986.0,0.2084148]
[1739338153168,0.00115633,95989.0,95982.0,0.11741738]
[1739338153467,0.2084201,95985.0,95982.0,0.11741738]
[1739338154367,0.2084224,95984.0,95982.0,0.01641738]
[1739338154566,0.2084224,95984.0,95977.0,0.3608]
[1739338155067,0.2084224,95984.0,95982.0,0.002]
[1739338155266,0.2084224,95984.0,95982.0,0.003]
[1739338155666,0.2084224,95984.0,95982.0,0.001]
[1739338155972,0.2084224,95984.0,95977.0,0.38436587]
[1739338156362,0.2084224,95984.0,95982.0,0.002]
[1739338156666,0.2084224,95984.0,95982.0,0.003]
[1739338157971,0.2084224,95984.0,95982.0,0.001]
[1739338158171,0.208433,95979.0,95977.0,0.02356587]
[1739338158766,0.208433,95979.0,95977.0,0.01856587]
[1739338159068,0.208433,95979.0,95977.0,0.01656587]
[1739338159262,0.0478,95981.0,95970.0,0.05065633]
[1739338159461,0.2084444,95974.0,95970.0,0.06712965]
[1739338161172,0.2084444,95974.0,95970.0,0.07712965]
[1739338161374,0.12514896,95980.0,95970.0,0.03062965]
[1739338161576,0.2084481,95972.0,95970.0,0.03062965]
[1739338161763,0.2084481,95972.0,95970.0,0.02662965]
[1739338161963,0.2084481,95972.0,95970.0,0.03062965]
[1739338162375,0.2084481,95972.0,95970.0,0.02962965]
[1739338162572,0.2084481,95972.0,95970.0,0.01962965]
[1739338162773,0.2084481,95972.0,95970.0,0.02762965]
[1739338164174,0.2084481,95972.0,95970.0,0.01962965]
[1739338164375,0.2084481,95972.0,95970.0,0.02762965]
[1739338165377,0.2084481,95972.0,95970.0,0.01962965]
[1739338165570,0.2084481,95972.0,95970.0,0.02662965]
[1739338166172,0.2084481,95972.0,95970.0,0.02362965]
[1739338166378,0.2084481,95972.0,95970.0,0.02662965]
[1739338167479,0.2084481,95972.0,95970.0,0.02462965]
[1739338167875,0.2084481,95972.0,95970.0,0.02362965]
[1739338169879,0.00015633,95989.0,95973.0,0.2084443]
[1739338170081,0.05255633,95989.0,95973.0,0.2084443]
[1739338170476,0.2084471,95972.0,95971.0,0.0523]
[1739338171570,0.2084471,95972.0,95971.0,0.0563]
[1739338172282,0.2084471,95972.0,95971.0,0.0633]
[1739338173487,0.2084471,95972.0,95971.0,0.0553]
[1739338173678,0.2084471,95972.0,95971.0,0.0633]
[1739338174676,0.2084471,95972.0,95971.0,0.0553]
[1739338174882,0.2084471,95972.0,95971.0,0.0633]
[1739338175083,0.2084471,95972.0,95971.0,0.011]
[1739338177092,0.2084471,95972.0,95971.0,0.008]
[1739338177789,0.2084471,95972.0,95971.0,0.007]
[1739338180389,0.2084471,95972.0,95971.0,0.002]
[1739338180688,0.2084471,95972.0,95971.0,0.007]
[1739338183086,0.2084263,95982.0,95976.0,0.2084364]
[1739338183290,0.2084282,95981.0,95979.0,0.3608]
[1739338184588,0.2084282,95981.0,95979.0,0.3618]
[1739338185089,0.2084282,95981.0,95979.0,0.3638]
[1739338189287,0.02415427,95981.0,95979.0,0.3638]
[1739338189487,0.07056,95987.0,95979.0,0.3638]
[1739338189789,0.07056,95987.0,95979.0,0.003]
[1739338189991,0.07056,95987.0,95979.0,0.001]
[1739338190190,0.2084282,95981.0,95979.0,0.005]
[1739338190697,0.2084282,95981.0,95979.0,0.007]
[1739338193302,0.2084282,95981.0,95979.0,0.005]
[1739338193494,0.2084282,95981.0,95979.0,0.002]
[1739338194401,0.2084294,95980.0,95979.0,0.002]
[1739338195893,0.07056,95987.0,95979.0,0.002]
[1739338196098,0.2084294,95980.0,95979.0,0.002]
[1739338197103,0.2084403,95975.0,95974.0,0.3608]
[1739338197806,0.2790003,95975.0,95974.0,0.3608]
[1739338198614,0.2790003,95975.0,95974.0,0.3618]
[1739338199609,0.2790003,95975.0,95974.0,0.3638]
[1739338200211,0.2790003,95975.0,95974.0,0.003]
[1739338200712,0.2790003,95975.0,95974.0,0.002]
[1739338203608,0.2084403,95975.0,95974.0,0.002]
[1739338203816,0.07056,95977.0,95974.0,0.2104404]
[1739338204321,0.2789854,95982.0,95974.0,0.2104404]
[1739338204924,0.2084286,95981.0,95974.0,0.2124404]
[1739338206013,0.2084286,95981.0,95974.0,0.2104404]
[1739338206216,0.2084286,95981.0,95974.0,0.2164404]
[1739338206408,0.2084286,95981.0,95974.0,0.2194404]
[1739338206821,0.2084286,95981.0,95974.0,0.2234404]
[1739338207117,0.2084286,95981.0,95974.0,0.2224404]
[1739338208120,0.2084286,95981.0,95974.0,0.2214404]
[1739338208710,0.2084286,95981.0,95974.0,0.2204404]
[1739338209721,0.2084286,95981.0,95974.0,0.2174404]
[1739338209912,0.2084286,95981.0,95974.0,0.2204404]
[1739338210112,0.2084286,95981.0,95975.0,0.2084385]
[1739338211020,0.2084286,95981.0,95976.0,0.2084374]
[1739338211713,0.07056,95982.0,95974.0,0.013]
[1739338212316,0.07056,95982.0,95975.0,0.009]
[1739338212719,0.07056,95982.0,95975.0,0.012]
[1739338213018,0.07056,95982.0,95975.0,0.003]
[1739338213215,0.2084286,95981.0,95977.0,0.208435]
[1739338214714,0.2084286,95981.0,95977.0,0.211435]
[1739338214914,0.2084312,95980.0,95977.0,0.211435]
[1739338215316,0.2084312,95980.0,95977.0,0.218435]
[1739338216006,0.2084312,95980.0,95977.0,0.211435]
[1739338216212,0.2084312,95980.0,95977.0,0.214435]
[1739338216522,0.2084312,95980.0,95977.0,0.217435]
[1739338217716,0.2084312,95980.0,95977.0,0.218435]
[1739338219012,0.2084312,95980.0,95977.0,0.217435]
[1739338219723,0.2084312,95980.0,95977.0,0.211435]
[1739338220017,0.2084325,95979.0,95977.0,0.011]
[1739338220615,0.2084325,95979.0,95977.0,0.009]
[1739338220811,0.2084816,95956.0,95951.0,0.0983]
[1739338221017,0.208489,95953.0,95951.0,0.11370886]
[1739338223523,0.07056,95958.0,95951.0,0.12570886]
[1739338223724,0.2790384,95958.0,95951.0,0.13070886]
[1739338223932,0.07056,95958.0,95954.0,0.2084853]
[1739338224323,0.1769951,95965.0,95954.0,0.2084853]
[1739338224621,0.1769951,95965.0,95955.0,0.08216332]
[1739338226233,0.1769951,95965.0,95956.0,0.2084805]
[1739338227826,0.1769951,95965.0,95956.0,0.2204805]
[1739338228726,0.3608,95962.0,95956.0,0.2204805]
[1739338229230,0.1769951,95965.0,95956.0,0.2204805]
[1739338229826,0.1769951,95965.0,95956.0,0.2114805]
[1739338230032,0.1769951,95965.0,95956.0,0.2204805]
[1739338231317,0.1064351,95965.0,95957.0,0.2084782]
[1739338232925,0.1064351,95965.0,95956.0,0.3728]
[1739338233125,0.1064351,95965.0,95958.0,0.2084763]
[1739338233430,0.1064351,95965.0,95957.0,0.008]
[1739338233635,0.1064351,95965.0,95959.0,0.2084741]
[1739338234629,0.07056,95967.0,95959.0,0.2084741]
[1739338234933,0.07056,95967.0,95957.0,0.008]
[1739338235125,0.2084729,95960.0,95959.0,0.003]
[1739338236231,0.2084729,95960.0,95959.0,0.01]
[1739338236827,0.2084729,95960.0,95959.0,0.007]
[1739338237034,0.2084729,95960.0,95959.0,0.003]
[1739338237619,0.2094729,95960.0,95959.0,0.003]
[1739338237824,0.2084897,95953.0,95951.0,0.01540886]
[1739338238026,0.07056,95956.0,95950.0,0.00278484]
[1739338238328,0.2084922,95952.0,95950.0,0.00156298]
[1739338239028,0.3608,95951.0,95950.0,0.00156298]
[1739338239230,0.2085098,95943.0,95938.0,0.3608]
[1739338239429,0.2085098,95943.0,95930.0,0.18515129]
[1739338239635,0.2085098,95943.0,95930.0,0.26731461]
[1739338240431,0.2085098,95943.0,95930.0,0.08216332]
[1739338240734,0.2085098,95943.0,95942.0,0.01424997]
[1739338240935,0.2085098,95943.0,95942.0,0.02524997]
[1739338241133,0.2085098,95943.0,95942.0,0.02924997]
[1739338242733,0.2084922,95952.0,95942.0,0.02924997]
[1739338243126,0.2084922,95952.0,95943.0,0.0492]
[1739338244339,0.2084922,95952.0,95943.0,0.0532]
[1739338245633,0.2084922,95952.0,95943.0,0.0632]
[1739338246938,0.2084935,95951.0,95943.0,0.0632]
[1739338247140,0.2084975,95949.0,95943.0,0.0632]
[1739338248535,0.2084975,95949.0,95943.0,0.0532]
[1739338248836,0.2084975,95949.0,95943.0,0.0632]
[1739338249343,0.2084975,95949.0,95943.0,0.0532]
[1739338249535,0.2084975,95949.0,95943.0,0.0632]
[1739338252644,0.3608,95956.0,95943.0,0.0632]
[1739338252849,0.3608,95956.0,95943.0,0.014]
[1739338253145,0.2085073,95945.0,95943.0,0.014]
[1739338254740,0.0499,95944.0,95943.0,0.014]
[1739338254937,0.2084992,95948.0,95943.0,0.014]
[1739338255339,0.43136,95955.0,95943.0,0.2225089]
[1739338255739,0.2084897,95953.0,95945.0,0.2085046]
[1739338255940,0.2084897,95953.0,95948.0,0.2084984]
[1739338256737,0.2084586,95967.0,95951.0,0.3608]
[1739338257047,0.2084586,95967.0,95959.0,0.2084729]
[1739338257752,0.2084586,95967.0,95960.0,0.2084708]
[1739338258652,0.3618,95964.0,95960.0,0.2084708]
[1739338258952,0.3618,95964.0,95960.0,0.2114708]
[1739338259450,0.3608,95964.0,95960.0,0.2174708]
[1739338259948,0.3608,95964.0,95960.0,0.23184878]
[1739338260250,0.2084586,95967.0,95960.0,0.23184878]
[1739338260943,0.2084586,95967.0,95960.0,0.02337798]
[1739338261145,0.2084586,95967.0,95961.0,0.2084688]
[1739338262041,0.2084586,95967.0,95962.0,0.0486]
[1739338263747,0.2084586,95967.0,95962.0,0.2570665]
[1739338264050,0.2084586,95967.0,95962.0,0.2600665]
[1739338264451,0.2084586,95967.0,95962.0,0.2650665]
[1739338264754,0.2084586,95967.0,95962.0,0.2640665]
[1739338265355,0.2084586,95967.0,95962.0,0.2650665]
[1739338265656,0.2084586,95967.0,95962.0,0.2640665]
[1739338266151,0.2084586,95967.0,95962.0,0.2154665]
[1739338266453,0.05025633,95970.0,95962.0,0.2154665]
[1739338266454,0.2084629,95965.0,95962.0,0.2154665]
[1739338266853,0.2084629,95965.0,95962.0,0.2144665]
[1739338267258,0.2084629,95965.0,95962.0,0.2134665]
[1739338267454,0.2084629,95965.0,95962.0,0.2144665]
[1739338267954,0.09785633,95970.0,95962.0,0.002]
[1739338268257,0.2084664,95963.0,95962.0,0.004]
[1739338268754,0.2084664,95963.0,95962.0,0.003]
[1739338269955,0.2084664,95963.0,95962.0,0.002]
[1739338270149,0.07056,95969.0,95962.0,0.002]
[1739338270457,0.2084571,95968.0,95962.0,0.001]
[1739338270645,0.2084623,95965.0,95962.0,0.001]
[1739338272156,0.34582044,95971.0,95962.0,0.001]
[1739338272459,0.2084658,95964.0,95962.0,0.001]
[1739338273949,0.2084693,95962.0,95960.0,0.01437798]
[1739338274158,0.2084693,95962.0,95954.0,0.69596667]
[1739338274353,0.2084693,95962.0,95957.0,0.2084784]
[1739338275451,0.0483,95970.0,95954.0,0.50150595]
[1739338275658,0.0483,95970.0,95954.0,0.50010595]
[1739338276061,0.0483,95970.0,95960.0,0.007]
[1739338276260,0.2084707,95961.0,95960.0,0.007]
[1739338277256,0.43132,95962.0,95957.0,0.003]
[1739338277257,0.2084772,95958.0,95957.0,0.003]
[1739338277453,0.2084837,95955.0,95954.0,0.01702378]
[1739338277968,0.2084837,95955.0,95954.0,0.01402378]
[1739338278262,0.2084946,95950.0,95949.0,0.0499]
[1739338280162,0.2084946,95950.0,95949.0,0.06800624]
[1739338280855,0.2084946,95950.0,95949.0,0.07600624]
[1739338282874,0.2084946,95950.0,95949.0,0.02610624]
[1739338288161,0.2790546,95950.0,95949.0,0.012]
[1739338288357,0.2085098,95943.0,95941.0,0.01387028]
[1739338288557,0.3608,95942.0,95921.0,0.1445]
[1739338288869,0.2085163,95941.0,95932.0,0.2085318]
[1739338290571,0.2085163,95941.0,95932.0,0.2235318]
[1739338290865,0.001,95941.0,95932.0,0.2305318]
[1739338291170,0.001,95941.0,95932.0,0.022]
[1739338291363,0.001,95941.0,95938.0,0.2085187]
[1739338291582,0.001,95941.0,95939.0,0.1397]
[1739338291765,0.001,95941.0,95939.0,0.3482166]
[1739338291966,0.001,95941.0,95940.0,0.3608]
[1739338292970,0.001,95941.0,95940.0,0.5693163]
[1739338293564,0.2084846,95955.0,95942.0,0.20851]
[1739338293765,0.2084846,95955.0,95940.0,0.50848217]
[1739338293963,0.2084679,95963.0,95949.0,0.208496]
[1739338294166,0.2084721,95961.0,95949.0,0.208496]
[1739338294676,0.5692721,95961.0,95949.0,0.208496]
[1739338296074,0.5692721,95961.0,95950.0,0.2084934]
[1739338297067,0.5692721,95961.0,95949.0,0.008]
[1739338297265,0.5692721,95961.0,95952.0,0.2084893]
[1739338298171,0.5692721,95961.0,95950.0,0.003]
[1739338298370,0.5692721,95961.0,95953.0,0.2084871]
[1739338299367,0.2084741,95960.0,95953.0,0.2084871]
[1739338299770,0.2084741,95960.0,95953.0,0.2104871]
[1739338300171,0.2084741,95960.0,95953.0,0.2124871]
[1739338300367,0.2084741,95960.0,95953.0,0.2104871]
[1739338300576,0.2084741,95960.0,95953.0,0.2124871]
[1739338301171,0.12528217,95970.0,95953.0,0.2124871]
[1739338301368,0.2084848,95955.0,95953.0,0.2124871]
[1739338302163,0.2084848,95955.0,95953.0,0.004]
[1739338302367,0.2084848,95955.0,95953.0,0.002]
[1739338302576,0.2084848,95955.0,95953.0,0.01557718]
[1739338302777,0.2084848,95955.0,95953.0,0.004]
[1739338303476,0.2094848,95955.0,95953.0,0.002]
[1739338303677,0.001,95955.0,95947.0,0.3608]
[1739338303875,0.2084859,95954.0,95953.0,0.001]
[1739338304173,0.2084859,95954.0,95946.0,0.00015633]
[1739338304368,0.2085011,95947.0,95946.0,0.00015633]
[1739338304972,0.2085217,95938.0,95926.0,0.0455]
[1739338305367,0.2085217,95938.0,95928.0,0.12528217]
[1739338306678,0.2085217,95938.0,95928.0,0.14028217]
[1739338306986,0.2095217,95938.0,95928.0,0.14728217]
[1739338308581,0.2095217,95938.0,95928.0,0.35582317]
[1739338309481,0.2095217,95938.0,95928.0,0.34282317]
[1739338309482,0.2085217,95938.0,95928.0,0.34282317]
[1739338309683,0.2085217,95938.0,95928.0,0.34782317]
[1739338310582,0.20853,95934.0,95928.0,0.014]
[1739338310881,0.2085327,95933.0,95928.0,0.014]
[1739338311679,0.2085169,95940.0,95928.0,0.014]
[1739338311883,0.2085354,95932.0,95928.0,0.014]
[1739338312082,0.2085393,95930.0,95928.0,0.014]
[1739338312485,0.5693393,95930.0,95928.0,0.014]
[1739338312784,0.5693393,95930.0,95919.0,0.3608]
[1739338312785,0.3608,95930.0,95919.0,0.3608]
[1739338312980,0.0465,95929.0,95919.0,0.3608]
[1739338313187,0.2550402,95929.0,95928.0,0.005]
[1739338313578,0.0465,95929.0,95923.0,0.01367071]
[1739338313886,0.2085511,95924.0,95923.0,0.01367071]
[1739338314088,0.2790711,95924.0,95923.0,0.01367071]
[1739338314975,0.2790711,95924.0,95923.0,0.02667071]
[1739338315978,0.2800711,95924.0,95923.0,0.02667071]
[1739338323195,0.001,95924.0,95923.0,0.02667071]
[1739338323498,0.07071633,95940.0,95923.0,0.02667071]
[1739338323791,0.00015633,95940.0,95938.0,0.2085187]
[1739338323992,0.00015633,95940.0,95939.0,0.1439]
[1739338325094,0.00115633,95940.0,95939.0,0.1439]
[1739338325793,0.00015633,95940.0,95939.0,0.1449]
[1739338326390,0.00015633,95940.0,95939.0,0.1459]
[1739338326696,0.00015633,95940.0,95939.0,0.15938529]
[1739338329696,0.00015633,95940.0,95939.0,0.52018529]
[1739338342393,0.208472,95961.0,95939.0,0.52018529]
[1739338342699,0.07052,95967.0,95952.0,0.3608]
[1739338342885,0.5692563,95968.0,95958.0,0.2084759]
[1739338343084,0.5692563,95968.0,95959.0,0.2084741]
[1739338343286,0.3608,95968.0,95952.0,0.48748217]
[1739338343500,0.2084586,95967.0,95959.0,0.2084741]
[1739338343890,0.00456366,95963.0,95959.0,0.2084741]
[1739338344496,0.00456366,95963.0,95952.0,0.48756217]
[1739338344686,0.00456366,95963.0,95952.0,0.37392975]
[1739338344892,0.2084785,95958.0,95952.0,0.37392975]
[1739338345294,0.00456366,95963.0,95952.0,0.01312975]
[1739338345497,0.208488,95954.0,95951.0,0.00015633]
[1739338345697,0.2084896,95953.0,95951.0,0.00015633]
[1739338346100,0.2084896,95953.0,95951.0,0.01363492]
[1739338346293,0.2084896,95953.0,95952.0,0.001]
[1739338346896,0.2084896,95953.0,95951.0,0.00015633]
[1739338347204,0.2154896,95953.0,95951.0,0.00015633]
[1739338348499,0.2104896,95953.0,95951.0,0.00015633]
[1739338348807,0.2134896,95953.0,95952.0,0.001]
[1739338349104,0.2164896,95953.0,95952.0,0.001]
[1739338349304,0.2124896,95953.0,95951.0,0.01375823]
[1739338349499,0.2094896,95953.0,95951.0,0.01375823]
[1739338350093,0.2104896,95953.0,95951.0,0.01375823]
[1739338350704,0.2104896,95953.0,95951.0,0.01475823]
[1739338351005,0.002,95953.0,95951.0,0.22325033]
[1739338352205,0.07208366,95963.0,95951.0,0.01475823]
[1739338352407,0.07208366,95963.0,95957.0,0.208478]
[1739338352607,0.07208366,95963.0,95951.0,0.01475823]
[1739338352922,0.21003076,95963.0,95959.0,0.2084738]
[1739338354112,0.21103076,95963.0,95959.0,0.2084738]
[1739338354313,0.00256366,95963.0,95959.0,0.2084738]
[1739338355302,0.2084716,95961.0,95959.0,0.2084738]
[1739338356702,0.2144716,95961.0,95959.0,0.2084738]
[1739338356902,0.006,95961.0,95951.0,0.01375823]
[1739338357102,0.2084776,95958.0,95951.0,0.01375823]
[1739338357303,0.2084776,95958.0,95955.0,0.2084831]
[1739338357710,0.2084896,95953.0,95951.0,0.01375823]
[1739338358215,0.2084896,95953.0,95951.0,0.01475823]
[1739338358906,0.2084896,95953.0,95951.0,0.01575823]
[1739338359608,0.2084896,95953.0,95951.0,0.01475823]
[1739338360509,0.2124896,95953.0,95951.0,0.00015633]
[1739338360710,0.2085163,95940.0,95939.0,0.3608]
[1739338361716,0.2085163,95940.0,95939.0,0.37334644]
[1739338362103,0.2085163,95940.0,95939.0,0.37934644]
[1739338362721,0.2085163,95940.0,95939.0,0.38234644]
[1739338372326,0.2085163,95940.0,95939.0,0.37634644]
[1739338372527,0.2095163,95940.0,95939.0,0.38434644]
[1739338374130,0.2085163,95940.0,95939.0,0.37634644]
[1739338374320,0.2085163,95940.0,95939.0,0.38034644]
[1739338375821,0.00015633,95949.0,95939.0,0.38034644]
[1739338376021,0.00015633,95949.0,95945.0,0.2085044]
[1739338376326,0.00015633,95949.0,95946.0,0.0474]
[1739338376524,0.00015633,95949.0,95947.0,0.2085011]
[1739338378334,0.00115633,95949.0,95947.0,0.2085011]
[1739338379036,0.00015633,95949.0,95947.0,0.2085011]
[1739338379337,0.00015633,95949.0,95947.0,0.2145011]
[1739338379737,0.00015633,95949.0,95947.0,0.2125011]
[1739338380036,0.00015633,95949.0,95947.0,0.2145011]
[1739338380330,0.00015633,95949.0,95947.0,0.2125011]
[1739338380535,0.00015633,95949.0,95947.0,0.2105011]
[1739338380838,0.00015633,95949.0,95947.0,0.2145011]
[1739338383129,0.00015633,95949.0,95947.0,0.2125011]
[1739338383429,0.00015633,95949.0,95947.0,0.2145011]
[1739338383740,0.00015633,95949.0,95947.0,0.2105011]
[1739338383939,0.00015633,95949.0,95947.0,0.2145011]
[1739338384745,0.2084989,95948.0,95947.0,0.006]
[1739338385043,0.2084989,95948.0,95947.0,0.002]
[1739338385242,0.2084989,95948.0,95947.0,0.004]
[1739338385443,0.2084989,95948.0,95947.0,0.002]
[1739338385639,0.2084989,95948.0,95947.0,0.004]
[1739338386040,0.2084989,95948.0,95947.0,0.003]
[1739338386643,0.2084989,95948.0,95947.0,0.002]
[1739338386843,0.2084989,95948.0,95947.0,0.004]
[1739338387532,0.2085054,95946.0,95940.0,0.256316]
[1739338387743,0.208512,95942.0,95940.0,0.256316]
[1739338387942,0.001,95948.0,95939.0,0.37334644]
[1739338388143,0.2085159,95941.0,95939.0,0.37334644]
[1739338390542,0.2085159,95941.0,95940.0,0.004]
[1739338391244,0.2085159,95941.0,95939.0,0.37734644]
[1739338391444,0.2085159,95941.0,95939.0,0.37934644]
[1739338392144,0.2085159,95941.0,95940.0,0.006]
[1739338392731,0.2085159,95941.0,95940.0,0.004]
[1739338393533,0.2085159,95941.0,95940.0,0.006]
[1739338394444,0.2085159,95941.0,95940.0,0.002]
[1739338396349,0.2085159,95941.0,95940.0,0.006]
[1739338396849,0.01087916,95941.0,95940.0,0.006]
[1739338397048,0.3608,95946.0,95940.0,0.006]
[1739338397348,0.2085159,95941.0,95940.0,0.006]
[1739338398143,0.3608,95943.0,95940.0,0.2145145]
[1739338398645,0.07048,95946.0,95940.0,0.2145145]
[1739338399237,0.2085103,95943.0,95940.0,0.2145145]
[1739338400152,0.2085126,95942.0,95940.0,0.006]
[1739338400949,0.3608,95941.0,95940.0,0.006]
[1739338403752,0.3608,95941.0,95940.0,0.002]
[1739338403953,0.3608,95941.0,95940.0,0.006]
[1739338410646,0.4129287,95941.0,95930.0,0.00015633]
[1739338410841,0.12532653,95940.0,95930.0,0.00015633]
[1739338411245,0.0475,95939.0,95930.0,0.00015633]
[1739338411454,0.0475,95939.0,95930.0,0.01325379]
[1739338411647,0.0475,95939.0,95930.0,0.00015633]
[1739338412148,0.2085358,95931.0,95930.0,0.00515633]
[1739338412455,0.2790158,95931.0,95930.0,0.00515633]
[1739338412656,0.2790158,95931.0,95930.0,0.01515633]
[1739338413457,0.2800158,95931.0,95930.0,0.01515633]
[1739338414151,0.2790158,95931.0,95930.0,0.00515633]
[1739338414348,0.2800158,95931.0,95930.0,0.01415633]
[1739338414754,0.2800158,95931.0,95930.0,0.00915633]
[1739338414957,0.2800158,95931.0,95930.0,0.01215633]
[1739338415854,0.2790158,95931.0,95930.0,0.01015633]
[1739338418260,0.07048,95931.0,95930.0,0.01015633]
[1739338418852,0.07048,95931.0,95922.0,0.0457]
[1739338419161,0.5693532,95923.0,95922.0,0.0457]
[1739338419755,0.2085598,95920.0,95915.0,0.20553]
[1739338419952,0.2790398,95920.0,95915.0,0.20553]
[1739338420664,0.2085728,95914.0,95913.0,0.00015633]
[1739338421760,0.2085728,95914.0,95913.0,0.01231822]
[1739338422157,0.2095728,95914.0,95913.0,0.01631822]
[1739338423949,0.2105728,95914.0,95913.0,0.03131822]
[1739338435361,0.2105728,95914.0,95913.0,0.01915633]
[1739338435662,0.002,95914.0,95890.0,0.08227931]
[1739338435968,0.2086032,95900.0,95899.0,0.046]
[1739338438063,0.2096032,95900.0,95899.0,0.046]
[1739338438766,0.2106032,95900.0,95899.0,0.054]
[1739338443679,0.002,95900.0,95899.0,0.054]
[1739338444563,0.00015641,95909.0,95907.0,0.2085868]
[1739338444762,0.00015641,95909.0,95908.0,0.0944]
[1739338445668,0.00115641,95909.0,95908.0,0.0944]
[1739338445870,0.00215641,95909.0,95908.0,0.0944]
[1739338446368,0.00115641,95909.0,95908.0,0.0944]
[1739338446568,0.00215641,95909.0,95908.0,0.1024]
[1739338447474,0.00215641,95909.0,95908.0,0.1034]
[1739338447975,0.00115641,95909.0,95908.0,0.1024]
[1739338449268,0.00015641,95909.0,95908.0,0.0954]
[1739338449476,0.00115641,95909.0,95908.0,0.0994]
[1739338451072,0.00115641,95909.0,95908.0,0.0984]
[1739338451376,0.00115641,95909.0,95908.0,0.0994]
[1739338452075,0.00115641,95909.0,95908.0,0.11165293]
[1739338461378,0.00115641,95909.0,95908.0,0.01725293]
[1739338462471,0.00115641,95909.0,95908.0,0.005]
[1739338468780,0.00115641,95909.0,95908.0,0.2135858]
[1739338469879,0.00115641,95909.0,95908.0,0.3095858]
[1739338474579,0.00115641,95909.0,95908.0,0.3105858]
[1739338477481,0.00115641,95909.0,95908.0,0.3095858]
[1739338477676,0.00115641,95909.0,95908.0,0.3105858]
[1739338477880,0.00015641,95909.0,95908.0,0.3055858]
[1739338478182,0.00115641,95909.0,95908.0,0.3105858]
[1739338482384,0.00015641,95909.0,95908.0,0.3055858]
[1739338482580,0.00115641,95909.0,95908.0,0.3105858]
[1739338484685,0.00015641,95909.0,95908.0,0.3045858]
[1739338484885,0.00115641,95909.0,95908.0,0.3105858]
[1739338486677,0.00156409,95920.0,95918.0,0.2085619]
[1739338486980,0.00156409,95920.0,95919.0,0.0477]
[1739338489383,0.00456409,95920.0,95919.0,0.0477]
[1739338490082,0.00156409,95920.0,95919.0,0.0477]
[1739338490379,0.00456409,95920.0,95919.0,0.0477]
[1739338490984,0.00456409,95920.0,95918.0,0.2085619]
[1739338492289,0.00456409,95920.0,95918.0,0.22059623]
[1739338492793,0.21312529,95920.0,95918.0,0.22059623]
[1739338493886,0.21212529,95920.0,95918.0,0.22059623]
[1739338494585,0.21212529,95920.0,95918.0,0.01203433]
[1739338494777,0.00356409,95920.0,95914.0,0.3608]
[1739338494982,0.2085664,95917.0,95914.0,0.3608]
[1739338495182,0.2085697,95916.0,95914.0,0.3608]
[1739338495891,0.2085697,95916.0,95914.0,0.37258902]
[1739338496189,0.2085697,95916.0,95914.0,0.37358902]
[1739338496790,0.2095697,95916.0,95914.0,0.37358902]
[1739338497392,0.2095697,95916.0,95914.0,0.01278902]
[1739338497689,0.2095697,95916.0,95914.0,0.01178902]
[1739338497889,0.2095697,95916.0,95914.0,0.001]
[1739338500986,0.048,95915.0,95914.0,0.001]
[1739338501695,0.11844,95915.0,95914.0,0.001]
[1739338502096,0.11944,95915.0,95914.0,0.001]
[1739338502296,0.11944,95915.0,95910.0,0.01237479]
[1739338502494,0.3280105,95915.0,95914.0,0.001]
[1739338503695,0.3270105,95915.0,95914.0,0.001]
[1739338504298,0.2085792,95911.0,95910.0,0.01637479]
[1739338504897,0.2085792,95911.0,95910.0,0.01437479]
[1739338505086,0.2085792,95911.0,95910.0,0.01237479]
[1739338505600,0.2085792,95911.0,95910.0,0.01437479]
[1739338505995,0.2085792,95911.0,95910.0,0.01637479]
[1739338510796,0.08228051,95920.0,95910.0,0.01637479]
[1739338511000,0.2790023,95919.0,95917.0,0.2085657]
[1739338511197,0.07044,95919.0,95917.0,0.2085657]
[1739338512203,0.07144,95919.0,95917.0,0.2085657]
[1739338512798,0.07544,95919.0,95917.0,0.2095657]